Cogmind - Beta 13 @@@ ROGUE MODE // 2024.04.24 @ 20:03:51 Player: darki Result: Destroyed by 8R-AWN with 8R-AWN's Boregun Performance ------------- Evolutions (1) 500 Regions Visited (5) 1000 Robots Destroyed (45) 225 Value Destroyed (989) 989 Prototype IDs (25) 500 Alien Tech Used (0) 0 Bonus (-814) -814 TOTAL SCORE: 2400 Bonus ------- Follower Combat Kills 90 Aligned with FarCom 300 Friendly Fire -1204 Cogmind --------- Core Integrity 0/400 Matter 3/300 Energy 80/100 System Corruption 0% Temperature Cool (0) Movement Walking (400) Ox4 Location -9/Exiles Parts ------- > --- POWER (1) -------- (None) > --- PROPULSION (2) --- Aluminum Leg Aluminum Leg > --- UTILITY (3) ------ Heat Sink Huge Storage Unit > --- WEAPON (3) ------- Heavy Assault Rifle Heavy Assault Rifle Heavy Assault Rifle > --- INVENTORY (25) --- Light Nuclear Core Armored Wheel Improved Flight Unit Improved Flight Unit Improved Flight Unit Medium Armor Plating Light Cannon AWS/Autocannon Grenade Launcher Mini Grenade Launcher Mini Grenade Launcher Mining Laser Peak State ------------ > --- POWER ------------ Improved Deuterium Engine > --- PROPULSION ------- Armored Wheel Armored Wheel > --- UTILITY ---------- Heat Sink Improved Heat Sink Huge Storage Unit > --- WEAPON ----------- AWS/Autocannon > --- INVENTORY -------- Heavy Ion Engine Light Nuclear Core Reinforced Deuterium Engine Reinforced Deuterium Engine Fission Core Light Treads Light Treads Aluminum Leg Aluminum Leg Improved Flight Unit Improved Flight Unit Improved Flight Unit Medium Armor Plating EM Shotgun Light EM Pulse Cannon Heavy Assault Rifle Heavy Assault Rifle Heavy Assault Rifle Light Cannon Light Cannon Light Cannon Grenade Launcher Mini Grenade Launcher Mini Grenade Launcher Mining Laser [Rating: 48] Favorites ----------- Power Heavy Ion Engine Engine Heavy Ion Engine Power Core Light Nuclear Core Propulsion Armored Wheel Treads Light Treads Leg Aluminum Leg Wheel Armored Wheel Utility Huge Storage Unit Device Improved Heat Sink Storage Huge Storage Unit Protection Medium Armor Plating Weapon Heavy Assault Rifle Energy Gun Beam Rifle Energy Cannon Beam Cannon Ballistic Gun Heavy Assault Rifle Ballistic Cannon AWS/Autocannon Launcher Mini Grenade Launcher Build | -11 -10 -10 -9 -9 -9 ------- Run | Yrd Mat Min Mat Min Exi Slots Evolved 2 | . . . 2 . . Power . | . . . . . . Propulsion . | . . . . . . Utility 1 | . . . 1 . . Weapon 1 | . . . 1 . . Parts Attached 43 | . 6 3 10 3 21 Power 4 | . 1 . 1 1 1 Engine 3 | . 1 . . 1 1 Core 1 | . . . 1 . . Reactor . | . . . . . . Propulsion 10 | . 2 1 1 . 6 Treads 3 | . . . . . 3 Leg 2 | . . . . . 2 Wheel 5 | . 2 1 1 . 1 Hover . | . . . . . . Flight . | . . . . . . Utility 10 | . 2 1 4 1 2 Device 7 | . . 1 4 1 1 Storage 2 | . 2 . . . . Processor . | . . . . . . Hackware . | . . . . . . Protection 1 | . . . . . 1 Artifact . | . . . . . . Weapon 19 | . 1 1 4 1 12 Energy Gun 2 | . . . 1 . 1 Energy Cannon 2 | . . 1 . . 1 Ballistic Gun 9 | . 1 . 3 1 4 Ballistic Cannon 5 | . . . . . 5 Launcher 1 | . . . . . 1 Special Weapon . | . . . . . . Impact Weapon . | . . . . . . Slashing Weapon . | . . . . . . Piercing Weapon . | . . . . . . Special Melee Weapon . | . . . . . . Unidentified Prototypes 1 | . 1 . . . . Parts Lost 15 | . 1 1 1 2 10 Power 2 | . . . . . 2 Propulsion 5 | . . 1 1 . 3 Utility 2 | . . . . 1 1 Weapon 6 | . 1 . . 1 4 Highest Loss Streak 8 | . 1 1 1 1 8 To Critical Strikes 7 | . . . . . 7 Average Slot Usage (%) 93 | . 91 95 96 98 84 Engine 10 | . 14 14 5 10 10 Core 1 | . . . 5 . . Wheel 22 | . 26 27 22 22 16 Device 12 | . . 10 18 20 20 Storage 14 | . 20 14 11 11 11 Energy Gun 4 | . 2 . 4 11 4 Energy Cannon 3 | . . 10 11 1 . Ballistic Gun 18 | . 25 17 17 20 7 Ballistic Cannon 1 | . . . . . 7 Naked Turns . | . . . . . . Heaviest Build 152 | 13 110 93 99 101 152 Greatest Support 40 | 20 24 24 24 24 40 Greatest Overweight (x) 12 | . 4 7 4 4 12 Average Overweight (x) 3 | . 2 3 3 3 5 Largest Inventory Capacity 25 | . 25 25 25 25 25 Average Capacity 24 | . 22 25 25 25 25 Most Carried 25 | . 15 16 25 24 25 Average Carried 18 | . 12 14 21 23 23 Final Capacity 25 | 8 25 25 25 25 25 Final Carried 24 | 6 15 14 22 24 14 Class Distribution -------------------- 42% | Mutant 31% | Scavenger-Gunner 24% | Gunner Dominant Class ---------------- Mutant | -10/Materials Mutant | -10/Mines Gunner | -9/Materials Scavenger-Gunner | -9/Mines Gunner | -9/Exiles Resources | -11 -10 -10 -9 -9 -9 ----------- Run | Yrd Mat Min Mat Min Exi Matter Collected 853 | 191 212 39 231 127 53 Remotely . | . . . . . . Salvage Created 1631 | . 689 69 537 325 11 Parts 90 | . 47 3 29 11 . Haulers Intercepted 3 | . 1 . 2 . . Recyclers Shooed 4 | . 2 1 1 . . Parts Field Recycled . | . . . . . . Retrieved Matter . | . . . . . . Parts Self-Destructed . | . . . . . . Prevented . | . . . . . . Kills | -11 -10 -10 -9 -9 -9 ------- Run | Yrd Mat Min Mat Min Exi Combat Hostiles Destroyed 36 | . 16 2 9 6 3 Guns 26 | . 16 1 5 4 . Cannons 7 | . . 1 4 2 . AOE 3 | . . . . . 3 Classes Destroyed 10 | . 7 . 1 2 . Worker 2 | . 1 . . 1 . Tunneler 2 | . 2 . . . . Hauler 3 | . 1 . 2 . . Operator 3 | . 2 . 1 . . Watcher 2 | . 2 . . . . Swarmer 9 | . 6 . 3 . . Grunt 17 | . 10 2 3 2 . Brawler 1 | . . . . 1 . Sentry 5 | . . . 5 . . Assembled 6 | . . . . 3 3 Best Kill Streak 6 | . 5 1 6 3 3 Combat Bots Only 6 | . 4 1 6 3 3 Max Kills in Single Turn 2 | . 2 1 2 1 1 Gunslinging . | . . . . . . Exploded 1 | . . . . . 1 Melee . | . . . . . . Uniques/NPCs Destroyed 1 | . . . . 1 . YI-UF0 (-9/Mines) Combat | -11 -10 -10 -9 -9 -9 -------- Run | Yrd Mat Min Mat Min Exi Hostile Shots Fired 244 | . 58 9 40 18 119 Missed 64 | . 14 3 14 4 29 Damage Taken 2793 | . 507 121 334 255 1576 Core 591 | . 147 26 15 79 324 Absorbed by Shields . | . . . . . . Core Remaining (%) 65 | 100 . 30 . . . Volleys Fired 170 | . 80 9 29 20 32 Largest 3 | . 2 2 3 3 3 Hottest 139 | . 60 80 139 139 136 Shots Fired 389 | . 159 18 87 60 65 Gun 298 | . 159 14 58 49 18 Cannon 87 | . . 4 29 11 43 Launcher 4 | . . . . . 4 Special . | . . . . . . Kinetic 277 | . 144 14 52 29 38 Thermal 70 | . . 4 35 31 . Explosive 4 | . . . . . 4 Electromagnetic 38 | . 15 . . . 23 Robot Hit Streak 24 | . 24 6 10 12 11 Robot Miss Streak 3 | . 3 2 3 2 3 Penetration Max . | . . . . . . Secondary Targets 2 | . 1 . . 1 . Max Gunslinging Chain 1 | . 1 . . 1 . Shots Hit Robots 258 | . 108 10 48 37 55 Core Hits 97 | . 49 3 19 16 10 Critical Kills 1 | . . 1 . . . Critical Parts Destroyed 2 | . . 1 1 . . Critical Strikes 4 | . . 2 1 1 . Burn 1 | . . . . 1 . Destroy 3 | . . 2 1 . . Melee Attacks . | . . . . . . Impact . | . . . . . . Slashing . | . . . . . . Piercing . | . . . . . . Sneak Attacks . | . . . . . . Combat Hostiles . | . . . . . . Follow-up Attacks . | . . . . . . Damage Inflicted 3381 | . 1018 92 843 572 856 Guns 2004 | . 992 73 505 434 . Cannons 1037 | . . 19 338 138 542 Explosions 314 | . . . . . 314 Melee . | . . . . . . Ramming 26 | . 26 . . . . Kinetic 2091 | . 824 73 431 232 531 Thermal 771 | . . 19 412 340 . Explosive 314 | . . . . . 314 Electromagnetic 179 | . 168 . . . 11 Impact . | . . . . . . Slashing . | . . . . . . Piercing . | . . . . . . Highest Corruption . | . . . . . . Average Corruption . | . . . . . . Corruption Purged . | . . . . . . Corruption Blocked . | . . . . . . Overload Shots . | . . . . . . Overflow Damage 35 | . 4 . 10 . 21 Projectiles 10 | . . . 10 . . Explosions 21 | . . . . . 21 Melee 4 | . 4 . . . . Knockbacks 6 | . . . . . 6 Impact . | . . . . . . Kinetic 6 | . . . . . 6 Secondary . | . . . . . . Self-Inflicted Damage 13 | . 13 . . . . Shots . | . . . . . . Rammed 1 | . 1 . . . . Targets Rammed 1 | . 1 . . . . Kicked . | . . . . . . Crushed . | . . . . . . Highest Temperature 307 | . 71 23 16 77 307 Average Temperature 30 | . 9 12 6 39 136 Received Heat Transfer 315 | . 150 57 90 18 . Siege Activations . | . . . . . . Robots Corrupted . | . . . . . . Combat Hostiles . | . . . . . . Parts Fried 1 | . 1 . . . . Impact Corruptions 1 | . 1 . . . . Robots Melted . | . . . . . . Combat Hostiles . | . . . . . . Parts Melted 1 | . . . 1 . . Heat Transferred 1813 | . . 37 888 888 . Parts Sabotaged . | . . . . . . Parts Stolen . | . . . . . . Parts Stripped . | . . . . . . Power Chain Reactions . | . . . . . . Alert | -11 -10 -10 -9 -9 -9 ------- Run | Yrd Mat Min Mat Min Exi Peak Influence 353 | . 353 150 255 95 . Initial 64 | . . 64 . 40 . Average 127 | . 189 104 140 34 . Maximum Alert Level 1 | . 1 . 1 . . Low Security (%) 77 | . 56 100 72 100 . Level 1 22 | . 43 . 27 . . Level 2 . | . . . . . . Level 3 . | . . . . . . Level 4 . | . . . . . . Level 5 . | . . . . . . High Security . | . . . . . . Max Security . | . . . . . . Squads Dispatched 4 | . 3 . 1 . . Investigation 1 | . 1 . . . . Extermination . | . . . . . . Reinforcement 3 | . 2 . 1 . . Assault . | . . . . . . Garrison . | . . . . . . Intercept . | . . . . . . Searches Triggered . | . . . . . . Construction Impeded . | . . . . . . Haulers Reinforced . | . . . . . . Active Scanning Responses . | . . . . . . Cargo Convoy Interrupts . | . . . . . . Stealth | -11 -10 -10 -9 -9 -9 --------- Run | Yrd Mat Min Mat Min Exi Distress Signals 4 | . 3 . 1 . . Communications Jammed . | . . . . . . Distress Signals . | . . . . . . Times Spotted 78 | . 33 6 21 12 6 Peak Tracking Total 15 | . 4 2 6 15 9 Tactical Retreats 1 | . 1 . . . . Traps | -11 -10 -10 -9 -9 -9 ------- Run | Yrd Mat Min Mat Min Exi Traps Triggered 4 | . 4 . . . . Indirectly . | . . . . . . Trap Hack Attempts . | . . . . . . Triggered . | . . . . . . Disarmed . | . . . . . . Reprogrammed . | . . . . . . Reused . | . . . . . . Traps Extracted . | . . . . . . Installed . | . . . . . . Triggered . | . . . . . . Machines | -11 -10 -10 -9 -9 -9 ---------- Run | Yrd Mat Min Mat Min Exi Machines Disabled 2 | . . . . . 2 Max in Single Turn 1 | . . . . . 1 Machines Repaired . | . . . . . . Machines Dismantled . | . . . . . . Machines Sabotaged . | . . . . . . Overloaded Fab Kills . | . . . . . . Hacking | -11 -10 -10 -9 -9 -9 --------- Run | Yrd Mat Min Mat Min Exi Machines Accessed 8 | . 4 . 2 . 2 Terminals 6 | . 4 . 2 . . Fabricators . | . . . . . . Repair Stations . | . . . . . . Recycling Units . | . . . . . . Scanalyzers . | . . . . . . Garrison Access . | . . . . . . Total Hacks 23 | . 13 . 5 . 5 Successful 14 | . 4 . 5 . 5 Failed 8 | . 8 . . . . Catastrophic 1 | . 1 . . . . Database Lockouts 1 | . 1 . . . . Manual 10 | . 5 . 4 . 1 Terminals 18 | . 13 . 5 . . Fabricators . | . . . . . . Repair Stations . | . . . . . . Recycling Units . | . . . . . . Scanalyzers . | . . . . . . Garrison Access . | . . . . . . Terminal Hacks 12 | . 4 . 3 . 5 Record 4 | . . . . . 4 Robot Analysis 4 | . 2 . 2 . . Prototype ID Bank 1 | . 1 . . . . Branch Access Points 1 | . . . 1 . . Registered Components 1 | . 1 . . . . Derelict Proto ID Bank 1 | . . . . . 1 Fabricator Hacks . | . . . . . . Repair Station Hacks . | . . . . . . Recycling Unit Hacks . | . . . . . . Scanalyzer . | . . . . . . Garrison Access Hacks . | . . . . . . Unauthorized Hacks 2 | . . . 2 . . Terminals 2 | . . . 2 . . Botnet 2 | . . . 2 . . Fabricators . | . . . . . . Repair Stations . | . . . . . . Recycling Units . | . . . . . . Scanalyzers . | . . . . . . Garrison Access . | . . . . . . Data Cores Recovered 1 | . 1 . . . . Used . | . . . . . . Hacking Detections 6 | . 4 . 2 . . Full Trace Events . | . . . . . . Feedback Events . | . . . . . . Feedback Blocked . | . . . . . . Robot Schematics Acquired . | . . . . . . Robots Built . | . . . . . . Authchips . | . . . . . . Time . | . . . . . . Total Robot Build Rating . | . . . . . . Part Schematics Acquired . | . . . . . . Parts Built . | . . . . . . Authchips . | . . . . . . Time . | . . . . . . Total Part Build Rating . | . . . . . . Parts Repaired . | . . . . . . Time . | . . . . . . Parts Recycled . | . . . . . . Recycled Matter . | . . . . . . Retrieved Matter . | . . . . . . Retrieved Components . | . . . . . . Parts Scanalyzed . | . . . . . . Part Schematics Acquired . | . . . . . . Parts Damaged . | . . . . . . Bothacking | -11 -10 -10 -9 -9 -9 ------------ Run | Yrd Mat Min Mat Min Exi Used RIF Installer . | . . . . . . Robots Hacked . | . . . . . . Non-combat . | . . . . . . Combat . | . . . . . . Robot Hacks Applied . | . . . . . . Relay Couplers Released . | . . . . . . Fabnet Peak Effective % . | . . . . . . Robots Rewired . | . . . . . . Allies Hacked . | . . . . . . Hacks Repelled . | . . . . . . Allies | -11 -10 -10 -9 -9 -9 -------- Run | Yrd Mat Min Mat Min Exi Total Allies 3 | . . 3 . . . Largest Group 3 | . . 3 3 . . Highest-Rated Group 40 | . . 40 40 . . Highest-Rated Ally 16 | . . 16 16 . . Total Orders . | . . . . . . Ally Attacks 21 | . . 9 12 . . Total Damage 247 | . . 104 143 . . Kills 4 | . . 1 3 . . Allies Corrupted . | . . . . . . Allies Melted . | . . . . . . Intel | -11 -10 -10 -9 -9 -9 ------- Run | Yrd Mat Min Mat Min Exi Robot Analysis Total 4 | . 2 . 2 . . Derelict Logs Recovered 2 | . . 1 . 1 . Drone Launches . | . . . . . . Drone Recoveries . | . . . . . . Exploration | -11 -10 -10 -9 -9 -9 ------------- Run | Yrd Mat Min Mat Min Exi Turns Passed 3982 | . 1173 462 816 785 746 Spaces Moved 2297 | 1 693 310 479 470 344 Core . | . . . . . . Treads 9 | . . . . . 9 Legs 43 | 1 35 . . . 7 Wheels 2245 | . 658 310 479 470 328 Hover . | . . . . . . Flight . | . . . . . . Fastest Speed 105 | 120 105 135 135 135 135 Average Speed 144 | 120 132 136 140 149 177 Slowest Speed 480 | 120 190 195 150 150 480 Overloaded Moves . | . . . . . . Propulsion Burnouts . | . . . . . . Robots Hopped . | . . . . . . Cave-ins Triggered . | . . . . . . Exploration Rate (%) 54 | 2 85 61 32 81 68 Regions Visited 5 Branch Regions 3 Pre-discovered Areas 3 | . . 1 . 1 1 Known Exits Taken 1 | . . . 1 . . Unknown Exits Taken 4 | 1 1 1 . 1 . Scrap Searched 2 | . . 1 . 1 . Spaces Dug . | . . . . . . Terrain Destroyed 16 | . . . . . 16 Melee . | . . . . . . Projectile . | . . . . . . AOE 16 | . . . . . 16 Terrain Rammed . | . . . . . . Walls Destroyed . | . . . . . . Machines Disabled . | . . . . . . Actions | -11 -10 -10 -9 -9 -9 --------- Run | Yrd Mat Min Mat Min Exi Total 2653 | . 821 334 557 507 434 Wait 78 | . 25 8 13 13 19 Move 2292 | . 692 309 478 469 344 Hop . | . . . . . . Pick Up 34 | . 10 2 16 2 4 Fast Attach 12 | . 4 2 2 1 3 Attach 18 | . 1 1 2 1 13 Detach 5 | . 2 . . . 3 Swap 13 | . 1 . 6 1 5 Drop 30 | . 5 3 11 . 11 Fire 170 | . 80 9 29 20 32 Melee . | . . . . . . Ram 1 | . 1 . . . . Kick . | . . . . . . Crush . | . . . . . . Escape Stasis . | . . . . . . Rewire . | . . . . . . Trap . | . . . . . . Miscellaneous . | . . . . . . Route ------- -11/Scrapyard -10/Materials (discovered 4 exits: *Mat x2 / [*Min x2]) -10/Mines -9/Materials (discovered 4 exits: [*Mat] / *Min x2 / *Sto) -9/Mines (discovered 2 exits: [*Mat] / *Exi) -9/Exiles (discovered 1 exit: [*Min]) History --------- Turn | Location | Event 1 | -11/Scrapyard | Discovered new exit (range 0) 1 | -11/Scrapyard | Entered Materials 130 | -10/Materials | Central database locked down 157 | -10/Materials | Discovered new exit (range 16) 309 | -10/Materials | Build established: Mutant 461 | -10/Materials | Discovered new exit (range 13) 603 | -10/Materials | Discovered new exit (range 13) 682 | -10/Materials | Discovered new exit (range 5) 841 | -10/Materials | Core integrity fell below 50% 1174 | -10/Materials | Entered Mines 1222 | -10/Mines | Assisted by bots powering up and referring to "LRC-V3" 1471 | -10/Mines | Discovered new exit (range 7) 1479 | -10/Mines | Learned location of Storage (-9) 1636 | -10/Mines | Entered Materials 1636 | -9/Materials | Accompanied by 3 allies 1636 | -9/Materials | Evolved 2 slots: Utility x1, Weapon x1 1656 | -9/Materials | Identified exit to Mines 1656 | -9/Materials | Identified exit to Storage 1936 | -9/Materials | Build established: Gunner 2200 | -9/Materials | Discovered new exit (range 10) 2440 | -9/Materials | Build established: Scavenger-Gunner 2452 | -9/Materials | Entered Mines 2467 | -9/Mines | YI-UF0 nonchalantly dropped a Grenade Launcher on the ground 2491 | -9/Mines | Murdered YI-UF0 2491 | -9/Mines | Destroyed YI-UF0 2512 | -9/Mines | Assembled infested the area 2691 | -9/Mines | Learned location of Zion (-7) 2804 | -9/Mines | Discovered new exit (range 6) 3231 | -9/Mines | Discovered new exit (range 5) 3237 | -9/Mines | Entered Exiles 3281 | -9/Exiles | Met 8R-AWN 3305 | -9/Exiles | Met EX-HEX 3374 | -9/Exiles | Met EX-DEC 3399 | -9/Exiles | Met EX-BIN 3420 | -9/Exiles | Aligned with FarCom system 3422 | -9/Exiles | Given EX-Vault access code 3458 | -9/Exiles | Opened EX-Vault 3467 | -9/Exiles | Found AWS/Autocannon 3505 | -9/Exiles | Warned to stay clear of 0b10 Research branches 3643 | -9/Exiles | Discovered new exit (range 14) 3705 | -9/Exiles | Attacked by the Exiles 3773 | -9/Exiles | Build established: Gunner 3798 | -9/Exiles | Core integrity fell below 50% 3925 | -9/Exiles | Core integrity fell below 20% 3983 | -9/Exiles | Destroyed by 8R-AWN with 8R-AWN's Boregun Last Messages --------------- 03966_ Penetrated by HV Slug. 03966_ HV Slug penetrates Wall. 03966_ Acquired 11 matter. 03971_ Penetrated by HV Slug. 03971_ HV Slug penetrates Wall. 03971_ Penetrated by HV Slug. 03971_ HV Slug penetrates Wall. 03975_ Penetrated by HV Slug. 03975_ HV Slug penetrates Wall. 03975_ Penetrated by HV Slug. 03975_ HV Slug penetrates Wall. 03976_ Wall collapses. 03977_ Acquired 1 matter. 03979_ Penetrated by HV Slug. 03979_ HV Slug penetrates Wall. 03979_ Penetrated by HV Slug. 03979_ HV Slug penetrates Wall. 03983_ Penetrated by HV Slug. 03983_ HV Slug penetrates Earth. 03983_ Penetrated by HV Slug. Map ----- +----------------------------------------------------+ | | | ??????????????????????????????????????????? | | ??????????????????????????????????????????? | | ??????????????????????????????????????????? | | ??????????????????????????????????????????? | | ??????????????????????????????????????????? | | ??????????????????????????????????????????? | | ??????????????????????????????????????????? | | ??????????????????????????????????????????? | | ??????????????????????????????????????????? | | ??????????????????????????????????????????? | | ????????????????????????????????? ????????? | | ???????????????????????????????? ?????????? | | ??????????????????????????????# ??????????? | | ?????????????????????????????# #??????????? | | ??????????????????##????????# #???????????? | | ?????????????????? #???????# #????????????? | | ????????????????##;##?????# #?????????????? | | ??????????????### ###### #??????????????? | | ???????????????; # # #???????????????? | | ???????????????# < # #????????????????? | | ???????????????# ;;;#?????????????????? | | ??????????????## #??????????????????? | | ??????????????#; ;#??????????????????? | | ???????????????#; % ##??????????????????? | | ???????????????## @ ##??????????????????? | | ????????????????##g ##???????????####### | | ?????????????????# ;######??????#!!! "# | | ?????????????????# #" ##?????# "# | | ?????????????????#; #?????# "# | | ?????????????????#;# ##???## ""# | | ?????????????????##" #####" ""# | | ??????????????????###; ##" ""# | | ?????????????????????;; #"" #?? | | ?????????????????????##"## #?? | | ??????????????????????####### ### | | ????????????????????????????### | | ??????????????????????########" | | ??????????????????????# !!""""" | | ??????????????????????#! "#" | | ??????????????????????#! "" # | | ??????????????????????#! ### | | ??????????????????????# !""""""###??# | | ??????????????????????##########????? | | ?????????????????????????????????????? ## # | | ??????????????????????????????????????##?## | | ??????????????????????????????????????????? | | ??????????????????????????????????????????? | | ??????????????????????????????????????????? | | ??????????????????????????????????????????? | +----------------------------------------------------+ Best States ------------- Heat Dissipation 56 Energy Generation 16 Energy Capacity 290 Matter Stores 300 Matter Capacity 300 Sight Range 16 Terrain Scan Density 10 Armor Coverage 225 Evasion (%) 55 Recoil Reduction 2 Item Schematics ----------------- None Robot Schematics ------------------ None Fabricated ------------ Nothing Alien Tech Used ----------------- None Achievements -------------- None Challenges ------------ None Game ------ Seed HeartMediumImmobilizer Manual? 0 Play Time 00:29:22 Cumulative 235.4 hours Start 2024.04.24 @ 11:46:07 End 2024.04.24 @ 20:03:51 Sessions 3 Manual Loads 0 Difficulty Rogue Special Mode None Game No. 232 Rogue 232 Adventurer 0 Explorer 0 Win Type - Total 7 Types 4/0/1/1/1/0/0/0/0 Lore% 71 Gallery% 79 Achievement% 67 Wizard Run 0 Options --------- Layout 0 ASCII 0 Keyboard 0 Movement Numpad Keybinds 0 Fullscreen 2 Font 18/SmallcapsGlow Map View 76x50 Zoom Use 0% Tactical HUD 1 Map Filters NONE Filters NONE Steam 1 RUN: cc32c33d-6b13-4f28-827f-21ec793f68c7